fUSD/lending_fUSD_20260115
["ID","MTS","AMOUNT","RATE_DAILY","PERIOD"]
[402089454,1768515082476,-511.4735225,0.00027487,2]
[402089455,1768515082485,-18216.58081327,0.00031708,2]
[402089456,1768515082495,-1668.86,0.00035616,10]
[402089457,1768515082504,-1668.86,0.0003589,10]
[402089458,1768515082514,-606.34,0.00036164,10]
[402089459,1768515082523,-1326.62,0.00036164,10]
[402089460,1768515082532,-1242.83,0.00036164,10]
[402089461,1768515082541,-500.0,0.00036164,10]
[402089462,1768515082550,-4290.39,0.00036164,10]
[402089463,1768515082559,-1429.1,0.00036164,10]
[402089464,1768515082568,-500.0,0.00036164,10]
[402089465,1768515082577,-608.47913168,0.00036164,10]
[402089466,1768515082587,-620.54,0.00036164,10]
[402089467,1768515082596,-615.11,0.00036164,10]
[402089468,1768515082606,-951.25,0.00036164,10]
[402089469,1768515082615,-572.03,0.00036164,10]
[402089470,1768515082625,-530.93,0.00036164,10]
[402089471,1768515082634,-1743.7,0.00036164,10]
[402089472,1768515082644,-1244.25,0.00036164,10]
[402089473,1768515082653,-500.0,0.00036164,10]
[402089474,1768515082663,-255.32723466,0.00036164,10]
[402089475,1768515082672,-1449.29,0.00036164,10]
[402089476,1768515082681,-1397.61,0.00036164,10]
[402089477,1768515082690,-548.34,0.00036164,10]
[402089478,1768515082699,-627.72,0.00036164,10]
[402089479,1768515082708,-500.0,0.00036164,10]
[402089480,1768515082718,-998.3,0.00036164,10]
[402089481,1768515082727,-1048.85,0.00036164,10]
[402089482,1768515082737,-621.75,0.00036164,10]
[402089483,1768515082746,-500.0,0.00036164,10]
[402089484,1768515082756,-1082.71,0.00036164,10]
[402089485,1768515082765,-500.0,0.00036164,10]
[402089486,1768515082774,-1384.4,0.00036164,10]
[402089487,1768515082783,-512.82,0.00036164,10]
[402089488,1768515082792,-500.0,0.00036164,10]
[402089489,1768515082802,-500.0,0.00036164,10]
[402089490,1768515082812,-1516.87,0.00036164,10]
[402089491,1768515082823,-1335.99,0.00036164,10]
[402089492,1768515082833,-500.0,0.00036164,10]
[402089493,1768515082844,-500.0,0.00036164,120]
[402089494,1768515082854,-500.0,0.00036164,10]
[402089495,1768515082864,-500.0,0.00036164,10]
[402089496,1768515082875,-1200.68,0.00036164,10]
[402089497,1768515082884,-759.06,0.00036164,10]
[402089498,1768515082894,-500.0,0.00036164,10]
[402089499,1768515082904,-1199.38,0.00036164,10]
[402089500,1768515082915,-1165.95,0.00036164,10]
[402089501,1768515082924,-1386.85,0.00036164,10]
[402089502,1768515082934,-500.0,0.00036164,10]
[402089503,1768515082943,-1207.06,0.00036164,10]
[402089504,1768515082952,-899.18,0.00036164,10]
[402089505,1768515082961,-541.1807501,0.00036164,10]
[402089506,1768515082970,-500.0,0.00036164,10]
[402089507,1768515082980,-1137.65,0.00036164,10]
[402089508,1768515082990,-500.0,0.00036164,10]
[402089509,1768515083003,-500.0,0.00036164,10]
[402089510,1768515083013,-1526.79,0.00036164,10]
[402089511,1768515083023,-500.0,0.00036164,10]
[402089512,1768515083032,-500.0,0.00036164,10]
[402089513,1768515083043,-151.0,0.00036164,31]
[402089514,1768515083052,-528.29,0.00036164,10]
[402089515,1768515083062,-500.0,0.00036164,10]
[402089516,1768515083071,-500.0,0.00036164,10]
[402089517,1768515083081,-500.0,0.00036164,10]
[402089518,1768515083090,-1150.92,0.00036164,10]
[402089519,1768515083099,-500.0,0.00036164,10]
[402089520,1768515083108,-624.84,0.00036164,10]
[402089521,1768515083118,-515.35761925,0.00036164,10]
[402089522,1768515083127,-500.0,0.00036164,10]
[402089523,1768515083136,-500.0,0.00036164,10]
[402089524,1768515083146,-2592.8,0.00036164,10]
[402089525,1768515083155,-500.0,0.00036164,10]
[402089526,1768515083165,-1195.15,0.00036164,10]
[402089527,1768515083174,-500.0,0.00036164,10]
[402089528,1768515083183,-1622.17,0.00036164,10]
[402089529,1768515083192,-500.0,0.00036164,10]
[402089530,1768515083202,-1403.74,0.00036164,10]
[402089531,1768515083211,-2037.68,0.00036164,10]
[402089532,1768515083220,-500.0,0.00036164,10]
[402089533,1768515083230,-1487.44,0.00036164,10]
[402089534,1768515083239,-806.52,0.00036164,10]
[402089535,1768515083249,-583.28,0.00036164,10]
[402089536,1768515083258,-500.0,0.00036164,10]
[402089537,1768515083267,-3653.99,0.00036164,10]
[402089538,1768515083277,-500.0,0.00036164,10]
[402089539,1768515083287,-500.0,0.00036164,10]
[402089540,1768515083296,-867.55,0.00036164,10]
[402089541,1768515083305,-2040.71,0.00036164,10]
[402089542,1768515083314,-738.59,0.00036164,10]
[402089543,1768515083324,-4418.41,0.00036164,10]
[402089544,1768515083333,-1258.66,0.00036164,10]
[402089545,1768515083342,-647.23,0.00036164,10]
[402089546,1768515083351,-500.0,0.00036164,10]
[402089547,1768515083360,-1152.47,0.00036164,10]
[402089548,1768515083370,-500.0,0.00036164,10]
[402089549,1768515083379,-575.1,0.00036164,10]
[402089550,1768515083389,-965.14,0.00036164,10]
[402089551,1768515083398,-500.0,0.00036164,10]
[402089552,1768515083408,-500.0,0.00036164,10]
[402089553,1768515083417,-661.26,0.00036164,10]
[402089554,1768515083427,-1124.29,0.00036164,10]
[402089555,1768515083437,-500.0,0.00036164,10]
[402089556,1768515083446,-1856.9,0.00036164,10]
[402089557,1768515083456,-500.0,0.00036164,10]
[402089558,1768515083465,-500.0,0.00036164,10]
[402089559,1768515083475,-464.11657317,0.00036164,10]
[402089560,1768515083484,-500.0,0.00036164,10]
[402089561,1768515083495,-500.0,0.00036164,10]
[402089562,1768515083504,-563.07,0.00036164,10]
[402089563,1768515083514,-500.0,0.00036164,10]
[402089564,1768515083523,-1785.0,0.00036164,10]
[402089565,1768515083532,-500.0,0.00036164,10]
[402089566,1768515083542,-1094.37,0.00036164,10]
[402089567,1768515083552,-500.0,0.00036164,10]
[402089568,1768515083561,-500.0,0.00036164,10]
[402089569,1768515083571,-500.0,0.00036164,10]
[402089570,1768515083580,-685.0,0.00036164,10]
[402089571,1768515083589,-500.0,0.00036164,10]
[402089572,1768515083598,-560.08959708,0.00036164,10]
[402089573,1768515083607,-500.0,0.00036164,10]
[402089574,1768515083617,-739.59,0.00036164,10]
[402089575,1768515083626,-1005.13,0.00036164,10]
[402089576,1768515083635,-674.92,0.00036164,10]
[402089577,1768515083644,-719.38,0.00036164,10]
[402089578,1768515083654,-727.9,0.00036164,10]
[402089579,1768515083663,-693.79,0.00036164,10]
[402089580,1768515083673,-1860.51,0.00036164,10]
[402089581,1768515083683,-1279.4,0.00036164,10]
[402089582,1768515083692,-500.0,0.00036164,10]
[402089583,1768515083702,-500.0,0.00036164,10]
[402089584,1768515083711,-1278.53,0.00036164,10]
[402089585,1768515083720,-500.0,0.00036164,10]
[402089586,1768515083730,-500.0,0.00036164,10]
[402089587,1768515083739,-500.0,0.00036164,10]
[402089588,1768515083749,-1503.26,0.00036164,10]
[402089589,1768515083758,-500.0,0.00036164,10]
[402089590,1768515083768,-500.0,0.00036164,10]
[402089591,1768515083778,-2292.42,0.00036164,10]
[402089592,1768515083787,-1095.31,0.00036164,10]
[402089593,1768515083796,-618.39,0.00036164,10]
[402089594,1768515083805,-500.0,0.00036164,10]
[402089595,1768515083815,-746.48,0.00036164,10]
[402089596,1768515083824,-500.0,0.00036164,10]
[402089597,1768515083834,-500.0,0.00036164,10]
[402089598,1768515083843,-1531.22,0.00036164,10]
[402089599,1768515083852,-1027.16,0.00036164,10]
[402089600,1768515083862,-500.0,0.00036164,10]
[402089601,1768515083871,-500.0,0.00036164,10]
[402089602,1768515083881,-500.0,0.00036164,10]
[402089603,1768515083890,-856.39,0.00036164,10]
[402089604,1768515083900,-1586.0,0.00036164,10]
[402089605,1768515083910,-1336.74,0.00036164,10]
[402089606,1768515083919,-500.0,0.00036164,10]
[402089607,1768515083929,-787.18,0.00036164,10]
[402089608,1768515083938,-500.0,0.00036164,10]
[402089609,1768515083949,-571.10024631,0.00036164,10]
[402089610,1768515083958,-500.0,0.00036164,10]
[402089611,1768515083968,-978.42,0.00036164,10]
[402089612,1768515083978,-1557.36,0.00036164,10]
[402089613,1768515083988,-712.23,0.00036164,10]
[402089614,1768515083998,-4555.97,0.00036164,10]
[402089615,1768515084010,-936.7,0.00036164,10]
[402089616,1768515084020,-674.26,0.00036164,10]
[402089617,1768515084030,-500.0,0.00036164,10]
[402089618,1768515084040,-540.43,0.00036164,10]
[402089619,1768515084276,-532.42,0.00036164,10]
[402089620,1768515084287,-901.71,0.00036164,10]
[402089621,1768515084296,-500.0,0.00036164,10]
[402089622,1768515084305,-151.0,0.00036164,31]
[402089623,1768515084314,-914.25,0.00036164,10]
[402089624,1768515084324,-500.0,0.00036164,10]
[402089625,1768515084334,-151.0,0.00036164,31]
[402089626,1768515084343,-500.0,0.00036164,10]
[402089627,1768515084353,-1155.95,0.00036164,10]
[402089628,1768515084362,-768.07,0.00036164,10]
[402089629,1768515084371,-1376.6,0.00036164,10]
[402089630,1768515084380,-500.0,0.00036164,10]
[402089631,1768515084390,-2518.2,0.00036164,10]
[402089632,1768515084399,-626.52595071,0.00036164,10]
[402089633,1768515084408,-510.86,0.00036164,10]
[402089634,1768515084417,-1119.38,0.00036164,10]
[402089635,1768515084427,-10167.41,0.00036164,10]
[402089636,1768515084436,-1116.31,0.00036164,10]
[402089637,1768515084445,-1047.94,0.00036164,10]
[402089638,1768515084454,-1054.63,0.00036164,10]
[402089639,1768515084463,-500.0,0.00036164,10]
[402089640,1768515084473,-500.0,0.00036164,10]
[402089641,1768515084482,-1599.07,0.00036164,10]
[402089642,1768515084491,-500.0,0.00036164,10]
[402089643,1768515084500,-1071.49,0.00036164,10]
[402089644,1768515084510,-500.0,0.00036164,10]
[402089645,1768515084519,-2260.1,0.00036164,10]
[402089646,1768515084528,-2524.19,0.00036164,10]
[402089647,1768515084537,-2235.7,0.00036164,10]
[402089648,1768515084546,-500.0,0.00036164,120]
[402089649,1768515084556,-1376.11,0.00036164,10]
[402089650,1768515084565,-1159.49,0.00036164,10]
[402089651,1768515084574,-500.0,0.00036164,10]
[402089652,1768515084583,-500.0,0.00036164,10]
[402089653,1768515084593,-500.0,0.00036164,10]
[402089654,1768515084603,-824.39,0.00036164,10]
[402089655,1768515084612,-809.0,0.00036164,10]
[402089656,1768515084621,-1157.56,0.00036164,10]
[402089657,1768515084631,-2495.0,0.00036164,10]
[402089658,1768515084640,-851.39,0.00036164,10]
[402089659,1768515084649,-500.0,0.00036164,10]
[402089660,1768515084659,-500.0,0.00036164,10]
[402089661,1768515084669,-915.22,0.00036164,10]
[402089662,1768515084678,-500.0,0.00036164,10]
[402089663,1768515084688,-797.98,0.00036164,10]
[402089664,1768515084697,-705.98,0.00036164,10]
[402089665,1768515084707,-2727.77,0.00036164,10]
[402089666,1768515084716,-1263.14,0.00036164,10]
[402089667,1768515084725,-685.92,0.00036164,10]
[402089668,1768515084734,-500.0,0.00036164,10]
[402089669,1768515084744,-724.14,0.00036164,10]
[402089670,1768515084753,-1272.93,0.00036164,10]
[402089671,1768515084763,-2741.17,0.00036164,10]
[402089672,1768515084772,-1354.27,0.00036164,10]
[402089673,1768515084782,-3018.12,0.00036164,10]
[402089674,1768515084792,-654.98,0.00036164,10]
[402089675,1768515084801,-508.86999622,0.00036164,10]
[402089676,1768515084811,-1526.33,0.00036164,10]
[402089677,1768515084820,-520.93,0.00036164,10]
[402089678,1768515084831,-646.7,0.00036164,10]
[402089679,1768515084840,-500.0,0.00036164,10]
[402089680,1768515084849,-637.13,0.00036164,10]
[402089681,1768515084860,-500.0,0.00036164,10]
[402089682,1768515084870,-500.0,0.00036164,10]
[402089683,1768515084882,-731.47,0.00036164,10]
[402089684,1768515084892,-1076.35,0.00036164,10]
[402089685,1768515084903,-500.0,0.00036164,10]
[402089686,1768515084912,-642.71,0.00036164,10]
[402089687,1768515084922,-500.0,0.00036164,10]
[402089688,1768515084933,-500.0,0.00036164,10]
[402089689,1768515084942,-784.51,0.00036164,10]
[402089690,1768515084951,-858.46,0.00036164,10]
[402089691,1768515084962,-500.0,0.00036164,10]
[402089692,1768515084973,-1084.46,0.00036164,10]
[402089693,1768515084983,-1824.34,0.00036164,10]
[402089694,1768515084992,-1025.9,0.00036164,10]
[402089695,1768515085002,-1119.01,0.00036164,10]
[402089696,1768515085017,-1141.75,0.00036164,10]
[402089697,1768515085028,-956.98,0.00036164,10]
[402089698,1768515085037,-373.56619843,0.00036164,10]
[402089699,1768515085049,-500.0,0.00036164,10]
[402089700,1768515085060,-500.0,0.00036164,10]
[402089701,1768515085072,-558.46,0.00036164,10]
[402089702,1768515085083,-729.16,0.00036164,10]
[402089703,1768515085096,-1404.42,0.00036164,10]
[402089704,1768515085107,-5187.32,0.00036164,10]
[402089705,1768515085117,-627.68,0.00036164,10]
[402089706,1768515085127,-500.0,0.00036164,10]
[402089707,1768515085136,-500.0,0.00036164,10]
[402089708,1768515085146,-500.0,0.00036164,10]
[402089709,1768515085157,-500.0,0.00036164,10]
[402089710,1768515085168,-1359.33,0.00036164,10]
[402089711,1768515085180,-697.05,0.00036164,10]
[402089712,1768515085191,-500.0,0.00036164,10]
[402089713,1768515085201,-1889.61,0.00036164,10]
[402089714,1768515085210,-3236.5,0.00036164,10]
[402089715,1768515085220,-500.0,0.00036164,10]
[402089716,1768515085229,-549.29,0.00036164,10]
[402089717,1768515085238,-809.08,0.00036164,10]
[402089718,1768515085247,-1370.64,0.00036164,10]
[402089719,1768515085257,-884.91,0.00036164,10]
[402089720,1768515085267,-500.0,0.00036164,10]
[402089721,1768515085278,-1134.23,0.00036164,10]
[402089722,1768515085288,-255.217328,0.00036164,7]
[402089723,1768515085298,-2250.66,0.00036164,10]
[402089724,1768515085307,-500.0,0.00036164,10]
[402089725,1768515085318,-255.217328,0.00036164,7]
[402089726,1768515085327,-500.0,0.00036164,10]
[402089727,1768515085336,-578.73,0.00036164,10]
[402089728,1768515085345,-500.0,0.00036164,10]
[402089729,1768515085354,-500.0,0.00036164,10]
[402089730,1768515085363,-255.217328,0.00036164,7]
[402089731,1768515085372,-500.0,0.00036164,10]
[402089732,1768515085383,-255.217328,0.00036164,7]
[402089733,1768515085392,-862.58,0.00036164,10]
[402089734,1768515085402,-500.0,0.00036164,10]
[402089735,1768515085411,-500.0,0.00036164,10]
[402089736,1768515085420,-500.0,0.00036164,10]
[402089737,1768515085431,-855.4,0.00036164,10]
[402089738,1768515085442,-1086.08,0.00036164,10]
[402089739,1768515085452,-500.0,0.00036164,10]
[402089740,1768515085463,-1370.25,0.00036164,10]
[402089741,1768515085473,-915.05,0.00036164,10]
[402089742,1768515085483,-500.0,0.00036164,10]
[402089743,1768515085492,-500.0,0.00036164,10]
[402089744,1768515085502,-500.0,0.00036164,10]
[402089745,1768515085512,-500.0,0.00036164,10]
[402089746,1768515085521,-500.0,0.00036164,10]
[402089747,1768515085531,-151.0,0.00036164,31]
[402089748,1768515085541,-500.0,0.00036164,10]
[402089749,1768515085552,-500.0,0.00036164,10]
[402089750,1768515085562,-3580.31,0.00036164,10]
[402089751,1768515085571,-1337.54,0.00036164,10]
[402089752,1768515085581,-864.59,0.00036164,10]
[402089753,1768515085590,-1307.04,0.00036164,10]
[402089754,1768515085599,-500.0,0.00036164,10]
[402089755,1768515085609,-500.0,0.00036164,10]
[402089756,1768515085620,-500.0,0.00036164,10]
[402089757,1768515085629,-615.23,0.00036164,10]
[402089758,1768515085640,-1865.44,0.00036164,10]
[402089759,1768515085650,-500.0,0.00036164,10]
[402089760,1768515085659,-500.0,0.00036164,10]
[402089761,1768515085668,-500.0,0.00036164,10]
[402089762,1768515085679,-2382.28,0.00036164,10]
[402089763,1768515085688,-500.0,0.00036164,10]
[402089764,1768515085699,-2057.23,0.00036164,10]
[402089765,1768515085708,-1347.5,0.00036164,10]
[402089766,1768515085719,-500.0,0.00036164,10]
[402089767,1768515085728,-609.67,0.00036164,10]
[402089768,1768515085737,-500.0,0.00036164,10]
[402089769,1768515085747,-500.0,0.00036164,10]
[402089770,1768515085757,-1070.74,0.00036164,10]
[402089771,1768515085766,-2003.54,0.00036164,10]
[402089772,1768515085776,-500.0,0.00036164,10]
[402089773,1768515085787,-500.0,0.00036164,10]
[402089774,1768515085797,-500.0,0.00036164,10]
[402089775,1768515085807,-500.0,0.00036164,10]
[402089776,1768515085816,-1202.29,0.00036164,10]
[402089777,1768515085828,-727.57,0.00036164,10]
[402089778,1768515085839,-1804.05,0.00036164,10]
[402089779,1768515085850,-508.98,0.00036164,10]
[402089780,1768515085859,-500.0,0.00036164,10]
[402089781,1768515085868,-1120.14,0.00036164,10]
[402089782,1768515085878,-1458.4,0.00036164,10]
[402089783,1768515085887,-500.0,0.00036164,10]
[402089784,1768515085897,-612.28,0.00036164,10]
[402089785,1768515085906,-500.0,0.00036164,10]
[402089786,1768515085916,-500.0,0.00036164,10]
[402089787,1768515085925,-2026.91,0.00036164,10]
[402089788,1768515085934,-500.0,0.00036164,10]
[402089789,1768515085943,-689.36,0.00036164,10]
[402089790,1768515085953,-500.0,0.00036164,10]
[402089791,1768515085962,-805.63,0.00036164,10]
[402089792,1768515085971,-663.11,0.00036164,10]
[402089793,1768515085980,-4619.93,0.00036164,10]
[402089794,1768515085990,-555.97,0.00036164,10]
[402089795,1768515085999,-1543.03,0.00036164,10]
[402089796,1768515086014,-500.0,0.00036164,10]
[402089797,1768515086024,-4191.7,0.00036164,10]
[402089798,1768515086033,-500.0,0.00036164,10]
[402089799,1768515086043,-1585.63,0.00036164,10]
[402089800,1768515086054,-1211.51,0.00036164,10]
[402089801,1768515086064,-760.87,0.00036164,10]
[402089802,1768515086074,-996.86,0.00036164,10]
[402089803,1768515086089,-1063.55,0.00036164,10]
[402089804,1768515086099,-500.0,0.00036164,10]
[402089805,1768515086109,-500.0,0.00036164,10]
[402089806,1768515086120,-358.91955415,0.00036164,10]
[402089807,1768515086130,-500.0,0.00036164,10]
[402089808,1768515086141,-500.0,0.00036164,10]
[402089809,1768515086153,-3201.05,0.00036164,10]
[402089810,1768515086164,-785.26,0.00036164,10]
[402089811,1768515086176,-500.0,0.00036164,10]
[402089812,1768515086185,-500.0,0.00036164,10]
[402089813,1768515086196,-777.92,0.00036164,10]
[402089814,1768515086206,-764.7,0.00036164,10]
[402089815,1768515086217,-661.59,0.00036164,10]
[402089816,1768515086227,-500.0,0.00036164,10]
[402089817,1768515086237,-1324.69,0.00036164,10]
[402089818,1768515086247,-1263.96,0.00036164,10]
[402089819,1768515086256,-500.0,0.00036164,10]
[402089820,1768515086265,-1233.67,0.00036164,10]
[402089821,1768515086274,-1289.49,0.00036164,10]
[402089822,1768515086284,-500.0,0.00036164,10]
[402089823,1768515086293,-768.25,0.00036164,10]
[402089824,1768515086302,-654.67,0.00036164,10]
[402089825,1768515086311,-500.0,0.00036164,10]
[402089826,1768515086320,-500.0,0.00036164,10]
[402089827,1768515086330,-500.0,0.00036164,10]
[402089828,1768515086339,-738.95,0.00036164,10]
[402089829,1768515086349,-500.0,0.00036164,10]
[402089830,1768515086358,-500.0,0.00036164,10]
[402089831,1768515086367,-755.88,0.00036164,10]
[402089832,1768515086376,-360.13051474,0.00036164,10]
[402089833,1768515086385,-500.0,0.00036164,10]
[402089834,1768515086394,-500.0,0.00036164,10]
[402089835,1768515086403,-2117.43,0.00036164,10]
[402089836,1768515086412,-500.0,0.00036164,10]
[402089837,1768515086421,-511.49,0.00036164,10]
[402089838,1768515086430,-825.9,0.00036164,10]
[402089839,1768515086439,-1159.24,0.00036164,10]
[402089840,1768515086448,-651.85,0.00036164,10]
[402089841,1768515086458,-1342.23,0.00036164,10]
[402089842,1768515086467,-1799.89,0.00036164,10]
[402089843,1768515086476,-1875.42,0.00036164,10]
[402089844,1768515086485,-500.0,0.00036164,10]
[402089845,1768515086494,-802.67,0.00036164,10]
[402089846,1768515086504,-500.0,0.00036164,10]
[402089847,1768515086514,-661.39,0.00036164,10]
[402089848,1768515086524,-3261.18,0.00036164,10]
[402089849,1768515086534,-628.73,0.00036164,10]
[402089850,1768515086546,-1235.66,0.00036164,10]
[402089851,1768515086555,-1668.86,0.00036164,10]
[402089852,1768515086565,-600.0,0.00036164,2]
[402089853,1768515086575,-1000.0,0.00036322,7]
[402089854,1768515086584,-150.0,0.00036336,2]
[402089855,1768515086595,-454.1716,0.00036338,2]
[402089856,1768515086604,-6892.9077,0.00036338,2]
[402089857,1768515086613,-262.7459,0.00036338,120]
[402089858,1768515086623,-6840.74630691,0.00036338,2]
[402089859,1768515086713,-3159.25369309,0.00036338,2]
[402089860,1768515086723,-500.0,0.00036357,2]
[402089861,1768515086732,-1000.0,0.00036367,7]
[402089862,1768515086741,-700.0,0.0003637,2]
[402089863,1768515086750,-858.95920354,0.0003637,2]
[402089864,1768515086760,-40159.3976385,0.00036383,2]
[402089865,1768515086768,-1263.0,0.00036384,30]
[402089866,1768515086779,-1263.0,0.00036384,30]
[402089867,1768515086788,-151.0,0.00036384,30]
[402089868,1768515086797,-1263.0,0.00036384,30]
[402089869,1768515086807,-151.0,0.00036384,30]
[402089870,1768515086816,-151.0,0.00036384,30]
[402089871,1768515086825,-1263.0,0.00036384,30]
[402089872,1768515086834,-151.0,0.00036384,30]
[402089873,1768515086843,-841.0,0.00036384,30]
[402089874,1768515086853,-1263.0,0.00036384,30]
[402089875,1768515086862,-151.0,0.00036384,30]
[402089876,1768515086871,-151.0,0.00036384,30]
[402089877,1768515086881,-841.0,0.00036384,30]
[402089878,1768515086890,-1263.0,0.00036384,30]
[402089879,1768515086899,-151.0,0.00036384,30]
[402089880,1768515086908,-151.0,0.00036384,30]
[402089881,1768515086918,-841.0,0.00036384,30]
[402089882,1768515086928,-1263.0,0.00036384,30]
[402089883,1768515086937,-151.0,0.00036384,30]
[402089884,1768515086946,-151.0,0.00036384,30]
[402089885,1768515086955,-841.0,0.00036384,30]
[402089886,1768515086964,-1263.0,0.00036384,30]
[402089887,1768515086974,-151.0,0.00036384,30]
[402089888,1768515086983,-151.0,0.00036384,30]
[402089889,1768515086992,-841.0,0.00036384,30]
[402089890,1768515087002,-155.0,0.00036384,30]
[402089891,1768515087019,-1263.0,0.00036384,30]
[402089892,1768515087029,-151.0,0.00036384,30]
[402089893,1768515087039,-151.0,0.00036384,30]
[402089894,1768515087048,-155.0,0.00036384,30]
[402089895,1768515087059,-1263.0,0.00036384,30]
[402089896,1768515087068,-841.0,0.00036384,30]
[402089897,1768515087078,-151.0,0.00036384,30]
[402089898,1768515087091,-151.0,0.00036384,30]
[402089899,1768515087100,-155.0,0.00036384,30]
[402089900,1768515087110,-1263.0,0.00036384,30]
[402089901,1768515087119,-841.0,0.00036384,30]
[402089902,1768515087128,-151.0,0.00036384,30]
[402089903,1768515087138,-151.0,0.00036384,30]
[402089904,1768515087147,-1263.0,0.00036384,30]
[402089905,1768515087157,-155.0,0.00036384,30]
[402089906,1768515087166,-841.0,0.00036384,30]
[402089907,1768515087175,-151.0,0.00036384,30]
[402089908,1768515087185,-151.0,0.00036384,30]
[402089909,1768515087194,-155.0,0.00036384,30]
[402089910,1768515087203,-1263.0,0.00036384,30]
[402089911,1768515087212,-382.1685414,0.00036384,30]
[402089912,1768515087221,-151.0,0.00036384,30]
[402089913,1768515087230,-151.0,0.00036384,30]
[402089914,1768515087240,-1263.0,0.00036384,30]
[402089915,1768515087249,-151.0,0.00036384,30]
[402089916,1768515087259,-155.0,0.00036384,30]
[402089917,1768515087268,-151.0,0.00036384,30]
[402089918,1768515087278,-1263.0,0.00036384,30]
[402089919,1768515087287,-155.0,0.00036384,30]
[402089920,1768515087297,-151.0,0.00036384,30]
[402089921,1768515087306,-151.0,0.00036384,30]
[402089922,1768515087315,-1263.0,0.00036384,30]
[402089923,1768515087324,-155.0,0.00036384,30]
[402089924,1768515087334,-151.0,0.00036384,30]
[402089925,1768515087343,-151.0,0.00036384,30]
[402089926,1768515087352,-1263.0,0.00036384,30]
[402089927,1768515087362,-151.0,0.00036384,30]
[402089928,1768515087372,-232.14100315,0.00036384,30]
[402089929,1768515087381,-151.0,0.00036384,30]
[402089930,1768515087391,-1263.0,0.00036384,30]
[402089931,1768515087399,-151.0,0.00036384,30]
[402089932,1768515087409,-151.0,0.00036384,30]
[402089933,1768515087418,-1263.0,0.00036384,30]
[402089934,1768515087427,-151.0,0.00036384,30]
[402089935,1768515087437,-151.0,0.00036384,30]
[402089936,1768515087446,-1263.0,0.00036384,30]
[402089937,1768515087456,-151.0,0.00036384,30]
[402089938,1768515087466,-1263.0,0.00036384,30]
[402089939,1768515087475,-151.0,0.00036384,30]
[402089940,1768515087485,-151.0,0.00036384,30]
[402089941,1768515087494,-1263.0,0.00036384,30]
[402089942,1768515087504,-151.0,0.00036384,30]
[402089943,1768515087513,-290.56171122,0.00036384,30]
[402089944,1768515087523,-152.0,0.00036384,30]
[402089945,1768515087533,-1263.0,0.00036384,30]
[402089946,1768515087543,-151.0,0.00036384,30]
[402089947,1768515087552,-152.0,0.00036384,30]
[402089948,1768515087561,-151.0,0.00036384,30]
[402089949,1768515087571,-1263.0,0.00036384,30]
[402089950,1768515087580,-152.0,0.00036384,30]
[402089951,1768515087590,-151.0,0.00036384,30]
[402089952,1768515087599,-1263.0,0.00036384,30]
[402089953,1768515087609,-152.0,0.00036384,30]